fUST/lending_fUST_20240819
["ID","MTS","AMOUNT","RATE_DAILY","PERIOD"]
[335282139,1724064715011,-1036.27,0.00022191,2]
[335282140,1724064715021,-876.01,0.00022191,2]
[335282141,1724064715030,-920.14,0.00022191,2]
[335282142,1724064715040,-924.92,0.00022191,2]
[335282143,1724064715049,-500.0,0.00022191,2]
[335282144,1724064715058,-884.77,0.00022191,2]
[335282145,1724064715068,-1525.26,0.00022191,2]
[335282146,1724064715078,-1240.07,0.00022191,2]
[335282147,1724064715087,-500.0,0.00022191,2]
[335282148,1724064715097,-531.9,0.00022191,2]
[335282149,1724064715107,-670.44,0.00022191,2]
[335282150,1724064715117,-2085.01,0.00022191,2]
[335282151,1724064715126,-608.01,0.00022191,2]
[335282152,1724064715135,-972.73,0.00022191,2]
[335282153,1724064715145,-627.13,0.00022191,2]
[335282154,1724064715156,-549.6,0.00022191,2]
[335282155,1724064715165,-571.47,0.00022191,2]
[335282156,1724064715175,-509.54,0.00022191,2]
[335282157,1724064715185,-1192.27,0.00022191,2]
[335282158,1724064715194,-833.76,0.00022191,2]
[335282159,1724064715204,-868.49,0.00022191,2]
[335282160,1724064715214,-541.44,0.00022191,2]
[335282161,1724064715224,-680.14,0.00022191,2]
[335282162,1724064715233,-677.35,0.00022191,2]
[335282163,1724064715243,-1037.09,0.00022191,2]
[335282164,1724064715253,-764.95,0.00022191,2]
[335282165,1724064715263,-3205.11,0.00022191,2]
[335282166,1724064715272,-629.33,0.00022191,2]
[335282167,1724064715282,-618.15,0.00022191,2]
[335282168,1724064715291,-788.89,0.00022191,2]
[335282169,1724064715301,-501.1,0.00022191,2]
[335282170,1724064715310,-868.42,0.00022191,2]
[335282171,1724064715320,-945.19,0.00022191,2]
[335282172,1724064715330,-500.0,0.00022191,2]
[335282173,1724064715340,-924.86,0.00022191,2]
[335282174,1724064715349,-1050.73,0.00022191,2]
[335282175,1724064715358,-673.9,0.00022191,2]
[335282176,1724064715367,-571.61,0.00022191,2]
[335282177,1724064715377,-819.39,0.00022191,2]
[335282178,1724064715386,-513.12,0.00022191,2]
[335282179,1724064715396,-1257.31,0.00022191,2]
[335282180,1724064715405,-651.1,0.00022191,2]
[335282181,1724064715417,-800.57,0.00022191,2]
[335282182,1724064715426,-643.17,0.00022191,2]
[335282183,1724064715436,-891.67,0.00022191,2]
[335282184,1724064715446,-734.44,0.00022191,2]
[335282185,1724064715455,-596.48,0.00022191,2]
[335282186,1724064715465,-991.23,0.00022191,2]
[335282187,1724064715474,-975.86,0.00022191,2]
[335282188,1724064715483,-1381.03,0.00022191,2]
[335282189,1724064715494,-502.85,0.00022191,2]
[335282190,1724064715504,-501.40923583,0.00022191,2]
[335282191,1724064715514,-530.34,0.00022191,2]
[335282192,1724064715523,-883.26,0.00022191,2]
[335282193,1724064715533,-704.69,0.00022191,2]
[335282194,1724064715542,-652.07,0.00022191,2]
[335282195,1724064715552,-613.05,0.00022191,2]
[335282196,1724064715563,-644.74,0.00022191,2]
[335282197,1724064715573,-627.32,0.00022191,2]
[335282198,1724064715584,-768.77,0.00022191,2]
[335282199,1724064715594,-1030.7,0.00022191,2]
[335282200,1724064715603,-751.5,0.00022191,2]
[335282201,1724064715612,-669.42,0.00022191,2]
[335282202,1724064715622,-563.42,0.00022191,2]
[335282203,1724064715632,-500.0,0.00022191,2]
[335282204,1724064715642,-563.05,0.00022191,2]
[335282205,1724064715651,-1159.42,0.00022191,2]
[335282206,1724064715661,-1058.32,0.00022191,2]
[335282207,1724064715672,-500.0,0.00022191,2]
[335282208,1724064715684,-1036.0,0.00022191,2]
[335282209,1724064715696,-835.22,0.00022191,2]
[335282210,1724064715707,-500.0,0.00022191,2]
[335282211,1724064715718,-1629.15,0.00022191,2]
[335282212,1724064715728,-874.96,0.00022191,2]
[335282213,1724064715738,-714.72,0.00022191,2]
[335282214,1724064715747,-679.46,0.00022191,2]
[335282215,1724064715758,-650.75,0.00022191,2]
[335282216,1724064715769,-2792.23,0.00022191,2]
[335282217,1724064715780,-1304.87,0.00022191,2]
[335282218,1724064715791,-685.38,0.00022191,2]
[335282219,1724064715803,-999.6,0.00022191,2]
[335282220,1724064715812,-547.37,0.00022191,2]
[335282221,1724064715824,-625.23,0.00022191,2]
[335282222,1724064715836,-500.0,0.00022191,2]
[335282223,1724064715848,-1241.89,0.00022191,2]
[335282224,1724064715860,-545.07,0.00022191,2]
[335282225,1724064715871,-1810.25,0.00022191,2]
[335282226,1724064715883,-1703.86,0.00022191,2]
[335282227,1724064715893,-1465.02,0.00022191,2]
[335282228,1724064715904,-548.12,0.00022191,2]
[335282229,1724064715915,-810.71,0.00022191,2]
[335282230,1724064715927,-2823.37,0.00022191,2]
[335282231,1724064715939,-500.0,0.00022191,2]
[335282232,1724064715949,-1950.34,0.00022191,2]
[335282233,1724064715959,-766.64,0.00022191,2]
[335282234,1724064715971,-1677.1,0.00022191,2]
[335282235,1724064715984,-611.4,0.00022191,2]
[335282236,1724064715995,-628.62,0.00022191,2]
[335282237,1724064716006,-531.03,0.00022191,2]
[335282238,1724064716016,-1530.73,0.00022191,2]
[335282239,1724064716026,-754.52,0.00022191,2]
[335282240,1724064716037,-575.88,0.00022191,2]
[335282241,1724064716047,-955.98,0.00022191,2]
[335282242,1724064716057,-574.44,0.00022191,2]
[335282243,1724064716068,-731.1,0.00022191,2]
[335282244,1724064716078,-6498.62,0.00022191,2]
[335282245,1724064716090,-6412.2,0.00022191,2]
[335282246,1724064716100,-1017.23,0.00022191,2]
[335282247,1724064716112,-1833.35,0.00022191,2]
[335282248,1724064716123,-552.95,0.00022191,2]
[335282249,1724064716135,-1738.28,0.00022191,2]
[335282250,1724064716145,-866.32,0.00022191,2]
[335282251,1724064716157,-1076.73,0.00022191,2]
[335282252,1724064716167,-556.23,0.00022191,2]
[335282253,1724064716177,-591.99,0.00022191,2]
[335282254,1724064716186,-1070.93,0.00022191,2]
[335282255,1724064716197,-500.0,0.00022191,2]
[335282256,1724064716207,-1404.09,0.00022191,2]
[335282257,1724064716216,-527.24,0.00022191,2]
[335282258,1724064716225,-4166.87,0.00022191,2]
[335282259,1724064716235,-549.76,0.00022191,2]
[335282260,1724064716245,-952.17,0.00022191,2]
[335282261,1724064716254,-523.47,0.00022191,2]
[335282262,1724064716264,-19615.05,0.00022191,2]
[335282263,1724064716273,-967.54,0.00022191,2]
[335282264,1724064716283,-1409.16,0.00022191,2]
[335282265,1724064716293,-5418.3,0.00022191,2]
[335282266,1724064716302,-3020.65,0.00022191,2]
[335282267,1724064716313,-2059.25,0.00022191,2]
[335282268,1724064716325,-6249.43,0.00022191,2]
[335282269,1724064716487,-1358.47,0.00022191,2]
[335282270,1724064716501,-1833.6,0.00022191,2]
[335282271,1724064716511,-695.24,0.00022191,2]
[335282272,1724064716523,-1406.0,0.00022191,2]
[335282273,1724064716534,-521.48,0.00022191,2]
[335282274,1724064716544,-1476.87,0.00022191,2]
[335282275,1724064716554,-1523.28,0.00022191,2]
[335282276,1724064716563,-2266.85,0.00022191,2]
[335282277,1724064716573,-1215.95,0.00022191,2]
[335282278,1724064716583,-734.72,0.00022191,2]
[335282279,1724064716592,-729.24,0.00022191,2]
[335282280,1724064716602,-2145.28,0.00022191,2]
[335282281,1724064716612,-500.0,0.00022191,2]
[335282282,1724064716622,-1474.66,0.00022191,2]
[335282283,1724064716631,-612.11,0.00022191,2]
[335282284,1724064716641,-2313.4,0.00022191,2]
[335282285,1724064716651,-1177.26,0.00022191,2]
[335282286,1724064716660,-573.54,0.00022191,2]
[335282287,1724064716669,-560.41,0.00022191,2]
[335282288,1724064716678,-2216.78,0.00022191,2]
[335282289,1724064716689,-1514.7,0.00022191,2]
[335282290,1724064716700,-835.68,0.00022191,2]
[335282291,1724064716712,-3105.81,0.00022191,2]
[335282292,1724064716723,-595.88,0.00022191,2]
[335282293,1724064716736,-1084.05,0.00022191,2]
[335282294,1724064716747,-3685.64,0.00022191,2]
[335282295,1724064716767,-2913.53,0.00022191,2]
[335282296,1724064716778,-597.54,0.00022191,2]
[335282297,1724064716789,-1064.67,0.00022191,2]
[335282298,1724064716800,-1144.09,0.00022191,2]
[335282299,1724064716811,-302.39527296,0.0002222,2]
[335282300,1724064716821,-302.42545213,0.0002222,2]
[335282301,1724064716831,-500.0,0.0002225,2]
[335282302,1724064716841,-383.190943,0.00022264,2]
[335282303,1724064716850,-1313.38444652,0.000223,2]
[335282304,1724064716862,-150.0,0.00022324,2]
[335282305,1724064716874,-521.0,0.00022324,2]
[335282306,1724064716885,-1414.0,0.00022324,2]
[335282307,1724064716896,-4166.0,0.00022324,2]
[335282308,1724064716906,-4166.0,0.00022324,2]
[335282309,1724064716916,-1696.37777606,0.0002238,2]
[335282310,1724064716925,-1854.4367005,0.00022421,2]
[335282311,1724064716936,-302.39527296,0.0002244,2]
[335282312,1724064716946,-302.42545213,0.0002244,2]
[335282313,1724064716956,-500.0,0.00022465,2]
[335282314,1724064716966,-999.1,0.00022465,2]
[335282315,1724064716975,-635.16,0.00022465,2]
[335282316,1724064716984,-591.86,0.00022465,2]
[335282317,1724064716994,-566.51,0.00022465,2]
[335282318,1724064717004,-604.56,0.00022465,2]
[335282319,1724064717014,-1036.27,0.00022465,2]
[335282320,1724064717024,-876.01,0.00022465,2]
[335282321,1724064717033,-920.14,0.00022465,2]
[335282322,1724064717043,-924.92,0.00022465,2]
[335282323,1724064717052,-450.4258842,0.00022465,2]
[335282324,1724064717063,-884.77,0.00022465,2]
[335282325,1724064717072,-1525.26,0.00022465,2]
[335282326,1724064717082,-1240.07,0.00022465,2]
[335282327,1724064717092,-447.84408254,0.00022465,2]
[335282328,1724064717102,-531.9,0.00022465,2]
[335282329,1724064717111,-670.44,0.00022465,2]
[335282330,1724064717121,-2085.01,0.00022465,2]
[335282331,1724064717131,-608.01,0.00022465,2]
[335282332,1724064717140,-972.73,0.00022465,2]
[335282333,1724064717150,-627.13,0.00022465,2]
[335282334,1724064717160,-549.6,0.00022465,2]
[335282335,1724064717169,-571.47,0.00022465,2]
[335282336,1724064717180,-509.54,0.00022465,2]
[335282337,1724064717189,-1192.27,0.00022465,2]
[335282338,1724064717199,-833.76,0.00022465,2]
[335282339,1724064717209,-868.49,0.00022465,2]
[335282340,1724064717219,-541.44,0.00022465,2]
[335282341,1724064717230,-680.14,0.00022465,2]
[335282342,1724064717242,-677.35,0.00022465,2]
[335282343,1724064717253,-1037.09,0.00022465,2]
[335282344,1724064717263,-764.95,0.00022465,2]
[335282345,1724064717272,-3205.11,0.00022465,2]
[335282346,1724064717283,-629.33,0.00022465,2]
[335282347,1724064717291,-618.15,0.00022465,2]
[335282348,1724064717302,-788.89,0.00022465,2]
[335282349,1724064717312,-501.1,0.00022465,2]
[335282350,1724064717322,-945.19,0.00022465,2]
[335282351,1724064717331,-868.42,0.00022465,2]
[335282352,1724064717342,-500.0,0.00022465,2]
[335282353,1724064717352,-924.86,0.00022465,2]
[335282354,1724064717362,-1050.73,0.00022465,2]
[335282355,1724064717373,-673.9,0.00022465,2]
[335282356,1724064717383,-571.61,0.00022465,2]
[335282357,1724064717393,-819.39,0.00022465,2]
[335282358,1724064717402,-513.12,0.00022465,2]
[335282359,1724064717412,-1257.31,0.00022465,2]
[335282360,1724064717421,-651.1,0.00022465,2]
[335282361,1724064717432,-800.57,0.00022465,2]
[335282362,1724064717441,-643.17,0.00022465,2]
[335282363,1724064717451,-891.67,0.00022465,2]
[335282364,1724064717461,-734.44,0.00022465,2]
[335282365,1724064717471,-596.48,0.00022465,2]
[335282366,1724064717480,-991.23,0.00022465,2]
[335282367,1724064717490,-975.86,0.00022465,2]
[335282368,1724064717501,-1381.03,0.00022465,2]
[335282369,1724064717511,-502.85,0.00022465,2]
[335282370,1724064717522,-530.34,0.00022465,2]
[335282371,1724064717532,-883.26,0.00022465,2]
[335282372,1724064717544,-704.69,0.00022465,2]
[335282373,1724064717554,-652.07,0.00022465,2]
[335282374,1724064717566,-613.05,0.00022465,2]
[335282375,1724064717577,-644.74,0.00022465,2]
[335282376,1724064717590,-627.32,0.00022465,2]
[335282377,1724064717599,-768.77,0.00022465,2]
[335282378,1724064717609,-1030.7,0.00022465,2]
[335282379,1724064717619,-751.5,0.00022465,2]
[335282380,1724064717628,-669.42,0.00022465,2]
[335282381,1724064717638,-563.42,0.00022465,2]
[335282382,1724064717648,-500.0,0.00022465,2]
[335282383,1724064717657,-563.05,0.00022465,2]
[335282384,1724064717667,-1159.42,0.00022465,2]
[335282385,1724064717678,-1058.32,0.00022465,2]
[335282386,1724064717691,-619.41667059,0.00022465,2]
[335282387,1724064717701,-1036.0,0.00022465,2]
[335282388,1724064717712,-835.22,0.00022465,2]
[335282389,1724064717723,-500.0,0.00022465,2]
[335282390,1724064717733,-1629.15,0.00022465,2]
[335282391,1724064717743,-874.96,0.00022465,2]
[335282392,1724064717757,-714.72,0.00022465,2]
[335282393,1724064717771,-679.46,0.00022465,2]
[335282394,1724064717782,-650.75,0.00022465,2]
[335282395,1724064717792,-2792.23,0.00022465,2]
[335282396,1724064717803,-1304.87,0.00022465,2]
[335282397,1724064717812,-685.38,0.00022465,2]
[335282398,1724064717822,-999.6,0.00022465,2]
[335282399,1724064717831,-547.37,0.00022465,2]
[335282400,1724064717844,-625.23,0.00022465,2]
[335282401,1724064717854,-627.23900475,0.00022465,2]
[335282402,1724064717863,-1241.89,0.00022465,2]
[335282403,1724064717875,-545.07,0.00022465,2]
[335282404,1724064717885,-1810.25,0.00022465,2]
[335282405,1724064717895,-1703.86,0.00022465,2]
[335282406,1724064717905,-1465.02,0.00022465,2]
[335282407,1724064717915,-548.12,0.00022465,2]
[335282408,1724064717924,-810.71,0.00022465,2]
[335282409,1724064717934,-2823.37,0.00022465,2]
[335282410,1724064717943,-516.83,0.00022465,2]
[335282411,1724064717952,-1950.34,0.00022465,2]
[335282412,1724064717962,-766.64,0.00022465,2]
[335282413,1724064717971,-1677.1,0.00022465,2]
[335282414,1724064717981,-611.4,0.00022465,2]
[335282415,1724064717991,-628.62,0.00022465,2]
[335282416,1724064718000,-531.03,0.00022465,2]
[335282417,1724064718010,-1530.73,0.00022465,2]
[335282418,1724064718019,-575.88,0.00022465,2]
[335282419,1724064718029,-754.52,0.00022465,2]
[335282420,1724064718039,-955.98,0.00022465,2]
[335282421,1724064718048,-574.44,0.00022465,2]
[335282422,1724064718058,-731.1,0.00022465,2]
[335282423,1724064718067,-6498.62,0.00022465,2]
[335282424,1724064718076,-6412.2,0.00022465,2]
[335282425,1724064718086,-1017.23,0.00022465,2]
[335282426,1724064718096,-1833.35,0.00022465,2]
[335282427,1724064718105,-552.95,0.00022465,2]
[335282428,1724064718114,-1738.28,0.00022465,2]
[335282429,1724064718124,-866.32,0.00022465,2]
[335282430,1724064718133,-1076.73,0.00022465,2]
[335282431,1724064718142,-556.23,0.00022465,2]
[335282432,1724064718151,-591.99,0.00022465,2]
[335282433,1724064718161,-1070.93,0.00022465,2]
[335282434,1724064718170,-500.0,0.00022465,2]
[335282435,1724064718180,-1404.09,0.00022465,2]
[335282436,1724064718190,-527.24,0.00022465,2]
[335282437,1724064718199,-4166.87,0.00022465,2]
[335282438,1724064718209,-549.76,0.00022465,2]
[335282439,1724064718219,-952.17,0.00022465,2]
[335282440,1724064718228,-523.47,0.00022465,2]
[335282441,1724064718237,-19615.05,0.00022465,2]
[335282442,1724064718247,-967.54,0.00022465,2]
[335282443,1724064718255,-1409.16,0.00022465,2]
[335282444,1724064718264,-5418.3,0.00022465,2]
[335282445,1724064718273,-3020.65,0.00022465,2]
[335282446,1724064718283,-2059.25,0.00022465,2]
[335282447,1724064718292,-6249.43,0.00022465,2]
[335282448,1724064718301,-1358.47,0.00022465,2]
[335282449,1724064718310,-1833.6,0.00022465,2]
[335282450,1724064718320,-695.24,0.00022465,2]
[335282451,1724064718330,-1406.0,0.00022465,2]
[335282452,1724064718340,-521.48,0.00022465,2]
[335282453,1724064718350,-1476.87,0.00022465,2]
[335282454,1724064718359,-1523.28,0.00022465,2]
[335282455,1724064718370,-2266.85,0.00022465,2]
[335282456,1724064718379,-1215.95,0.00022465,2]
[335282457,1724064718388,-734.72,0.00022465,2]
[335282458,1724064718398,-729.24,0.00022465,2]
[335282459,1724064718407,-2145.28,0.00022465,2]
[335282460,1724064718417,-500.0,0.00022465,2]
[335282461,1724064718427,-1474.66,0.00022465,2]
[335282462,1724064718437,-612.11,0.00022465,2]
[335282463,1724064718446,-2313.4,0.00022465,2]
[335282464,1724064718456,-1177.26,0.00022465,2]
[335282465,1724064718465,-573.54,0.00022465,2]
[335282466,1724064718475,-560.41,0.00022465,2]
[335282467,1724064718484,-2216.78,0.00022465,2]
[335282468,1724064718494,-1514.7,0.00022465,2]
[335282469,1724064718503,-835.68,0.00022465,2]
[335282470,1724064718513,-3105.81,0.00022465,2]
[335282471,1724064718523,-595.88,0.00022465,2]
[335282472,1724064718533,-1084.05,0.00022465,2]
[335282473,1724064718543,-3685.64,0.00022465,2]
[335282474,1724064718562,-2913.53,0.00022465,2]
[335282475,1724064718573,-597.54,0.00022465,2]
[335282476,1724064718583,-1064.67,0.00022465,2]
[335282477,1724064718593,-1144.09,0.00022465,2]
[335282478,1724064718603,-800.0,0.00022487,2]
[335282479,1724064718613,-800.0,0.00022487,2]
[335282480,1724064718624,-800.0,0.00022487,2]
[335282481,1724064718634,-154.71377951,0.00022491,2]
[335282482,1724064718643,-200.0,0.000225,2]
[335282483,1724064718653,-465.00000022,0.00022513,2]
[335282484,1724064718662,-1900.0,0.00022567,2]
[335282485,1724064718672,-302.39527296,0.0002266,2]
[335282486,1724064718682,-302.42545213,0.0002266,2]
[335282487,1724064718693,-1900.0,0.00022681,2]
[335282488,1724064718702,-153.0,0.00022685,2]
[335282489,1724064718711,-153.0,0.00022685,2]
[335282490,1724064718721,-153.0,0.00022685,2]
[335282491,1724064718731,-153.0,0.00022685,2]
[335282492,1724064718740,-153.0,0.00022685,2]
[335282493,1724064718751,-153.0,0.00022685,2]
[335282494,1724064718762,-153.0,0.00022685,2]
[335282495,1724064718772,-153.0,0.00022685,2]
[335282496,1724064718781,-153.0,0.00022685,2]
[335282497,1724064718791,-153.0,0.00022685,2]
[335282498,1724064718802,-500.0,0.00022739,2]
[335282499,1724064718811,-999.24152686,0.00022739,2]
[335282500,1724064718821,-635.23057807,0.00022739,2]
[335282501,1724064718830,-592.05220458,0.00022739,2]
[335282502,1724064718842,-566.57669459,0.00022739,2]
[335282503,1724064718852,-604.79245291,0.00022739,2]
[335282504,1724064718862,-1036.28038916,0.00022739,2]
[335282505,1724064718874,-876.24270774,0.00022739,2]
[335282506,1724064718883,-920.26057504,0.00022739,2]
[335282507,1724064718893,-924.93798968,0.00022739,2]
[335282508,1724064718903,-884.91573684,0.00022739,2]
[335282509,1724064718912,-1525.38,0.00022739,2]
[335282510,1724064718922,-1240.10918146,0.00022739,2]
[335282511,1724064718933,-531.92855603,0.00022739,2]
[335282512,1724064718943,-670.62071033,0.00022739,2]
[335282513,1724064719074,-2085.04594734,0.00022739,2]
[335282514,1724064719084,-608.24483126,0.00022739,2]
[335282515,1724064719094,-972.96058671,0.00022739,2]
[335282516,1724064719104,-627.20014535,0.00022739,2]
[335282517,1724064719114,-549.73210525,0.00022739,2]
[335282518,1724064719127,-571.5695014,0.00022739,2]
[335282519,1724064719137,-509.55085491,0.00022739,2]
[335282520,1724064719147,-1192.33501204,0.00022739,2]
[335282521,1724064719156,-833.79230377,0.00022739,2]
[335282522,1724064719166,-868.55444936,0.00022739,2]
[335282523,1724064719176,-541.5036635,0.00022739,2]
[335282524,1724064719186,-680.28593668,0.00022739,2]
[335282525,1724064719197,-677.42713341,0.00022739,2]
[335282526,1724064719207,-1037.18998107,0.00022739,2]
[335282527,1724064719217,-764.99916955,0.00022739,2]
[335282528,1724064719228,-3205.32264447,0.00022739,2]
[335282529,1724064719238,-629.39,0.00022739,2]
[335282530,1724064719247,-618.34120999,0.00022739,2]
[335282531,1724064719257,-788.90249672,0.00022739,2]
[335282532,1724064719267,-501.18762463,0.00022739,2]
[335282533,1724064719277,-945.27422476,0.00022739,2]
[335282534,1724064719286,-868.54604554,0.00022739,2]
[335282535,1724064719296,-438.02817615,0.00022739,2]
[335282536,1724064719306,-925.08982631,0.00022739,2]
[335282537,1724064719317,-1050.76594791,0.00022739,2]
[335282538,1724064719328,-673.9,0.00022739,2]
[335282539,1724064719337,-571.69666147,0.00022739,2]
[335282540,1724064719347,-819.39032372,0.00022739,2]
[335282541,1724064719357,-513.23206927,0.00022739,2]
[335282542,1724064719367,-1257.441463,0.00022739,2]
[335282543,1724064719383,-651.18303342,0.00022739,2]
[335282544,1724064719394,-800.77074535,0.00022739,2]
[335282545,1724064719404,-643.19927243,0.00022739,2]
[335282546,1724064719414,-891.87433713,0.00022739,2]
[335282547,1724064719424,-734.57566113,0.00022739,2]
[335282548,1724064719433,-596.54015456,0.00022739,2]
[335282549,1724064719445,-991.45389901,0.00022739,2]
[335282550,1724064719455,-976.0043615,0.00022739,2]
[335282551,1724064719465,-1381.11885598,0.00022739,2]
[335282552,1724064719474,-502.92990704,0.00022739,2]
[335282553,1724064719484,-530.54633241,0.00022739,2]
[335282554,1724064719495,-883.3124774,0.00022739,2]
[335282555,1724064719505,-704.81451283,0.00022739,2]
[335282556,1724064719515,-652.23562691,0.00022739,2]
[335282557,1724064719525,-613.26927669,0.00022739,2]
[335282558,1724064719536,-644.89860666,0.00022739,2]
[335282559,1724064719546,-627.42111428,0.00022739,2]
[335282560,1724064719556,-768.82161348,0.00022739,2]
[335282561,1724064719567,-1030.87581864,0.00022739,2]
[335282562,1724064719576,-751.71536438,0.00022739,2]
[335282563,1724064719586,-669.55606977,0.00022739,2]
[335282564,1724064719597,-563.45332743,0.00022739,2]
[335282565,1724064719607,-359.68051828,0.00022739,2]
[335282566,1724064719617,-563.11744102,0.00022739,2]
[335282567,1724064719629,-1159.61559894,0.00022739,2]
[335282568,1724064719638,-1058.38870719,0.00022739,2]
[335282569,1724064719647,-835.39768011,0.00022739,2]
[335282570,1724064719657,-424.22013633,0.00022739,2]
[335282571,1724064719666,-1036.20366356,0.00022739,2]
[335282572,1724064719676,-1629.22658408,0.00022739,2]
[335282573,1724064719685,-875.18418244,0.00022739,2]
[335282574,1724064719695,-714.77481294,0.00022739,2]
[335282575,1724064719705,-679.51599502,0.00022739,2]
[335282576,1724064719714,-650.82918034,0.00022739,2]
[335282577,1724064719724,-2792.44405112,0.00022739,2]
[335282578,1724064719734,-1305.10013104,0.00022739,2]
[335282579,1724064719743,-685.46959669,0.00022739,2]
[335282580,1724064719756,-999.67134476,0.00022739,2]
[335282581,1724064719766,-547.43019795,0.00022739,2]
[335282582,1724064719775,-625.43309908,0.00022739,2]
[335282583,1724064719786,-1241.94781877,0.00022739,2]
[335282584,1724064719796,-545.25694575,0.00022739,2]
[335282585,1724064719805,-1810.3823098,0.00022739,2]
[335282586,1724064719815,-1703.99950288,0.00022739,2]
[335282587,1724064719827,-1465.15999557,0.00022739,2]
[335282588,1724064719837,-548.12453439,0.00022739,2]
[335282589,1724064719847,-810.86356143,0.00022739,2]
[335282590,1724064719857,-2823.54464311,0.00022739,2]
[335282591,1724064719867,-1950.54487622,0.00022739,2]
[335282592,1724064719877,-766.66405426,0.00022739,2]
[335282593,1724064719887,-1677.13860365,0.00022739,2]
[335282594,1724064719896,-611.5296949,0.00022739,2]
[335282595,1724064719906,-628.62983013,0.00022739,2]
[335282596,1724064719915,-531.03696751,0.00022739,2]
[335282597,1724064719926,-1530.76112783,0.00022739,2]
[335282598,1724064719936,-575.89185021,0.00022739,2]
[335282599,1724064719946,-754.75538601,0.00022739,2]
[335282600,1724064719961,-956.08375024,0.00022739,2]
[335282601,1724064719970,-574.54780123,0.00022739,2]
[335282602,1724064719980,-731.31166999,0.00022739,2]
[335282603,1724064719990,-6498.79842238,0.00022739,2]
[335282604,1724064719999,-6412.22404455,0.00022739,2]
[335282605,1724064720009,-1017.39430548,0.00022739,2]
[335282606,1724064720019,-1833.40242278,0.00022739,2]
[335282607,1724064720029,-553.18288138,0.00022739,2]
[335282608,1724064720038,-1738.45310365,0.00022739,2]
[335282609,1724064720049,-866.33604297,0.00022739,2]
[335282610,1724064720059,-1076.89011139,0.00022739,2]
[335282611,1724064720069,-556.26334155,0.00022739,2]
[335282612,1724064720079,-592.01742185,0.00022739,2]
[335282613,1724064720089,-1070.98203841,0.00022739,2]
[335282614,1724064720099,-293.02873237,0.00022739,2]
[335282615,1724064720112,-1404.29,0.00022739,2]
[335282616,1724064720123,-527.26724559,0.00022739,2]
[335282617,1724064720132,-4167.07983228,0.00022739,2]
[335282618,1724064720142,-549.99106987,0.00022739,2]
[335282619,1724064720152,-952.30033401,0.00022739,2]
[335282620,1724064720162,-523.49598237,0.00022739,2]
[335282621,1724064720172,-19615.23739742,0.00022739,2]
[335282622,1724064720182,-967.68493489,0.00022739,2]
[335282623,1724064720193,-1409.19551074,0.00022739,2]
[335282624,1724064720202,-5418.41689502,0.00022739,2]
[335282625,1724064720213,-3020.88158575,0.00022739,2]
[335282626,1724064720223,-2059.47189981,0.00022739,2]
[335282627,1724064720233,-6249.65298416,0.00022739,2]
[335282628,1724064720243,-1358.4809597,0.00022739,2]
[335282629,1724064720253,-1833.69131381,0.00022739,2]
[335282630,1724064720264,-695.41285373,0.00022739,2]
[335282631,1724064720274,-1406.0218867,0.00022739,2]
[335282632,1724064720284,-521.63799098,0.00022739,2]
[335282633,1724064720295,-1476.92097716,0.00022739,2]
[335282634,1724064720305,-1523.33208306,0.00022739,2]
[335282635,1724064720315,-2266.87005757,0.00022739,2]
[335282636,1724064720325,-1216.17198914,0.00022739,2]
[335282637,1724064720335,-734.90126058,0.00022739,2]
[335282638,1724064720345,-729.42619664,0.00022739,2]